Cogmind - Beta 15 @@@ ROGUE MODE // 2025.08.12 @ 12:02:56 Player: Mogwok Wargfriend Result: Destroyed by YI-UF0 with YI-UF0's Doublenader Performance ------------- Evolutions (0) 0 Regions Visited (2) 400 Robots Destroyed (39) 195 Value Destroyed (565) 565 Prototype IDs (1) 20 Alien Tech Used (0) 0 Bonus (0) 0 TOTAL SCORE: 1180 Bonus ------- None Cogmind --------- Core Integrity 0/250 Matter 266/300 Energy 97/100 System Corruption 0% Temperature Cool (0) Movement Core (1400) Ox27 Location -10/Mines Parts ------- > --- POWER (1) -------- (None) > --- PROPULSION (2) --- (None) > --- UTILITY (2) ------ Huge Storage Unit > --- WEAPON (2) ------- Grenade Launcher > --- INVENTORY (25) --- Ion Engine Light Ion Engine Wheel Wheel Wheel Compact Wheel Compact Wheel Heat Sink Improved Heat Sink High-capacity Matter Pod (200) Propulsion Shielding Weapon Shielding Medium Laser Advanced Beam Cannon Advanced Beam Cannon Light Cannon Light Cannon Light Cannon Light Cannon Battle Cannon Mining Laser Hammer Peak State ------------ > --- POWER ------------ Ion Engine > --- PROPULSION ------- Wheel Compact Wheel > --- UTILITY ---------- Improved Heat Sink Huge Storage Unit > --- WEAPON ----------- Advanced Beam Cannon Light Cannon > --- INVENTORY -------- Ion Engine Ion Engine Light Ion Engine Wheel Wheel Compact Wheel Compact Wheel Heat Sink Improved Heat Sink High-capacity Matter Pod Medium Laser Advanced Beam Cannon Advanced Beam Cannon Light Assault Rifle Light Cannon Light Cannon Light Cannon Light Cannon Battle Cannon Grenade Launcher Grenade Launcher Mining Laser Hammer [Rating: 14] Favorites ----------- Power Ion Engine Engine Ion Engine Propulsion Wheel Wheel Wheel Utility Improved Heat Sink Device Improved Heat Sink Storage Huge Storage Unit Weapon Advanced Beam Cannon Energy Gun Medium Laser Energy Cannon Advanced Beam Cannon Ballistic Gun Assault Rifle Ballistic Cannon Light Cannon Launcher Grenade Launcher Special Weapon Mining Laser Build | -11 -10 -10 ------- Run | Yrd Mat Min Slots Evolved . | . . . Power . | . . . Propulsion . | . . . Utility . | . . . Weapon . | . . . Parts Attached 22 | 7 10 5 Power 3 | 1 . 2 Engine 3 | 1 . 2 Core . | . . . Reactor . | . . . Propulsion 4 | 2 1 1 Treads . | . . . Leg . | . . . Wheel 4 | 2 1 1 Hover . | . . . Flight . | . . . Utility 5 | 2 3 . Device 3 | 1 2 . Storage 2 | 1 1 . Processor . | . . . Hackware . | . . . Protection . | . . . Artifact . | . . . Weapon 10 | 2 6 2 Energy Gun 1 | . 1 . Energy Cannon 1 | . 1 . Ballistic Gun 3 | 2 1 . Ballistic Cannon 2 | . 2 . Launcher 2 | . . 2 Special Weapon 1 | . 1 . Impact Weapon . | . . . Slashing Weapon . | . . . Piercing Weapon . | . . . Special Melee Weapon . | . . . Unidentified Prototypes 1 | . 1 . Parts Lost 10 | . 1 9 Power 2 | . . 2 Propulsion 3 | . . 3 Utility 1 | . . 1 Weapon 4 | . 1 3 Highest Loss Streak 8 | . 1 8 To Critical Strikes . | . . . Average Backups 13 | 4 8 22 Power 1 | . 1 2 Propulsion 3 | 2 2 3 Utility 2 | . 1 3 Weapon 6 | . 3 11 Tool/Special . | . . . Unused Backups 26 | . 4 22 Power 2 | . . 2 Propulsion 7 | . 2 5 Utility 6 | . 1 5 Weapon 11 | . 1 10 Tool/Special . | . . . Average Slot Usage (%) 99 | . 99 98 Engine 13 | . 14 13 Wheel 27 | . 27 27 Device 13 | . 13 14 Storage 14 | . 14 14 Energy Gun 1 | . 3 . Energy Cannon 10 | . 7 14 Ballistic Gun 8 | . 14 . Ballistic Cannon 7 | . 2 14 Peak Build Rating 14 | 7 13 14 Average Rating 10 | 6 9 13 On Entrance 6 | . 7 13 Naked Turns . | . . . Heaviest Build 93 | 14 93 93 Greatest Support 26 | 26 26 26 Greatest Overweight (x) 9 | 2 3 9 Average Overweight (x) 1 | . . 3 Largest Inventory Capacity 25 | 8 25 25 Average Capacity 16 | 7 11 25 Most Carried 25 | 6 16 25 Average Carried 13 | 4 8 22 Final Capacity 25 | 8 25 25 Final Carried 22 | 6 16 22 Class Distribution -------------------- 100% | Mutant Dominant Class ---------------- Mutant | -10/Materials Mutant | -10/Mines Resources | -11 -10 -10 ----------- Run | Yrd Mat Min Matter Collected 1017 | 314 572 131 Remotely . | . . . Salvage Created 1212 | 209 600 403 Parts 87 | 11 53 23 Haulers Intercepted 2 | . 2 . Recyclers Shooed 1 | 1 . . Parts Field Recycled . | . . . Retrieved Matter . | . . . Parts Self-Destructed . | . . . Prevented . | . . . Kills | -11 -10 -10 ------- Run | Yrd Mat Min Combat Hostiles Destroyed 14 | . 9 5 Guns 7 | . 7 . Cannons 7 | . 2 5 Classes Destroyed 9 | 2 7 . Worker 8 | . 5 3 Builder 3 | . 3 . Tunneler 5 | 5 . . Hauler 2 | . 2 . Recycler 4 | 1 . 3 Operator 1 | . 1 . Watcher 2 | . 2 . Swarmer 6 | . 3 3 Grunt 8 | . 6 2 Best Kill Streak 9 | 3 9 4 Combat Bots Only 3 | . 3 3 Max Kills in Single Turn 2 | 1 2 1 Gunslinging . | . . . Exploded . | . . . Melee . | . . . Uniques/NPCs Destroyed . | . . . Combat | -11 -10 -10 -------- Run | Yrd Mat Min Hostile Shots Fired 109 | . 62 47 Missed 33 | . 20 13 Hits 76 | . 42 34 Projectile 76 | . 42 34 AOE 15 | . . 15 Damage Taken 1238 | . 511 727 Core 269 | . 161 108 Absorbed by Shields . | . . . Regen/Repaired (Parts) 23 | . 23 . Core Remaining (%) 100 | 100 . . Volleys Fired 108 | 11 70 27 Largest 2 | 2 2 2 Hottest 100 | 40 100 98 Shots Fired 201 | 22 126 53 Gun 117 | 22 95 . Cannon 77 | . 27 50 Launcher 3 | . . 3 Special 4 | . 4 . Kinetic 132 | 22 85 25 Thermal 66 | . 41 25 Explosive 3 | . . 3 Electromagnetic . | . . . Robot Hit Streak 8 | 6 8 4 Robot Miss Streak 5 | 2 4 5 Penetration Max . | . . . Secondary Targets . | . . . Shots Hit Robots 99 | 15 60 24 Core Hits 54 | 7 33 14 Critical Kills . | . . . Critical Parts Destroyed . | . . . Critical Strikes 1 | . . 1 Blast 1 | . . 1 Melee Attacks . | . . . Impact . | . . . Slashing . | . . . Piercing . | . . . Sneak Attacks . | . . . Combat Hostiles . | . . . Follow-up Attacks . | . . . Damage Inflicted 1495 | 161 889 445 Guns 696 | 161 535 . Cannons 775 | . 354 421 Explosions 24 | . . 24 Melee . | . . . Ramming . | . . . Kinetic 794 | 161 473 160 Thermal 677 | . 416 261 Explosive 24 | . . 24 Electromagnetic . | . . . Impact . | . . . Slashing . | . . . Piercing . | . . . Highest Corruption . | . . . Average Corruption . | . . . Corruption Purged . | . . . Corruption Blocked . | . . . Overload Shots . | . . . Overflow Damage 6 | . . 6 Projectiles 6 | . . 6 Explosions . | . . . Melee . | . . . Knockbacks 4 | . . 4 Impact . | . . . Kinetic 4 | . . 4 Secondary . | . . . Self-Inflicted Damage 44 | . . 44 Shots 3 | . . 3 Rammed . | . . . Targets Rammed . | . . . Kicked . | . . . Crushed . | . . . Highest Temperature 128 | . 128 12 Average Temperature 47 | . 53 6 Received Heat Transfer 282 | . 258 24 Siege Activations . | . . . Martial Activations . | . . . Shielding Activations . | . . . Robots Disrupted . | . . . Combat Hostiles . | . . . Robots Corrupted . | . . . Combat Hostiles . | . . . Parts Fried . | . . . Impact Corruptions . | . . . Robots Melted . | . . . Combat Hostiles . | . . . Parts Melted . | . . . Heat Transferred 1258 | . 814 444 Parts Sabotaged . | . . . Parts Stolen . | . . . Parts Stripped . | . . . Power Chain Reactions . | . . . Alert | -11 -10 -10 ------- Run | Yrd Mat Min Maximum Alert Level . | . . . Low Security (%) 100 | 100 100 100 Level 1 . | . . . Level 2 . | . . . Level 3 . | . . . Level 4 . | . . . Level 5 . | . . . High Security . | . . . Max Security . | . . . Peak Influence 140 | 10 140 135 Initial 26 | . . 26 Average 47 | 2 55 44 Influence Increases 664 | 30 402 232 Destroy 0b10 Robot/C 280 | . 180 100 Destroy 0b10 Robot/NC 125 | 30 65 30 Destroy Leader 78 | . 58 20 Successful Hack 36 | . 36 . Disable Machine 90 | . 60 30 Destroy Structure 10 | . 3 7 Lose Combat Pursuer 45 | . . 45 Influence Decreases 664 | 30 334 300 Entered New Map 42 | . . 42 Time Decay 605 | 30 334 241 Lost Part 17 | . . 17 Squads Dispatched 2 | . 2 . Investigation 1 | . 1 . Extermination . | . . . Reinforcement 1 | . 1 . Assault . | . . . Garrison . | . . . Intercept . | . . . Searches Triggered . | . . . Construction Impeded . | . . . Haulers Reinforced . | . . . Active Scanning Responses . | . . . Cargo Convoy Interrupts . | . . . Stealth | -11 -10 -10 --------- Run | Yrd Mat Min Distress Signals . | . . . Communications Jammed . | . . . Distress Signals . | . . . Times Spotted 30 | . 18 12 Peak Tracking Total 4 | . 4 3 Tactical Retreats 2 | . . 2 Traps | -11 -10 -10 ------- Run | Yrd Mat Min Traps Triggered 3 | . 3 . Indirectly . | . . . Trap Hack Attempts . | . . . Triggered . | . . . Disarmed . | . . . Reprogrammed . | . . . Reused . | . . . Traps Extracted . | . . . Installed . | . . . Triggered . | . . . Machines | -11 -10 -10 ---------- Run | Yrd Mat Min Machines Disabled 6 | . 4 2 Max in Single Turn 1 | . 1 1 Machines Repaired . | . . . Machines Dismantled . | . . . Machines Sabotaged . | . . . Overloaded Fab Kills . | . . . Hacking | -11 -10 -10 --------- Run | Yrd Mat Min Machines Accessed 8 | . 8 . Terminals 5 | . 5 . Fabricators . | . . . Repair Stations 1 | . 1 . Recycling Units 2 | . 2 . Scanalyzers . | . . . Garrison Access . | . . . Total Hacks 19 | . 19 . Successful 10 | . 10 . Failed 8 | . 8 . Catastrophic 1 | . 1 . Database Lockouts 1 | . 1 . Manual 13 | . 13 . Terminals 12 | . 12 . Fabricators . | . . . Repair Stations 2 | . 2 . Recycling Units 5 | . 5 . Scanalyzers . | . . . Garrison Access . | . . . Terminal Hacks 3 | . 3 . Robot Analysis 2 | . 2 . Locate Traps 1 | . 1 . Fabricator Hacks . | . . . Repair Station Hacks 2 | . 2 . Scan Component 1 | . 1 . Repair 1 | . 1 . Recycling Unit Hacks 1 | . 1 . Report Inventory 1 | . 1 . Scanalyzer . | . . . Garrison Access Hacks . | . . . Unauthorized Hacks 4 | . 4 . Terminals 2 | . 2 . Botnet 2 | . 2 . Fabricators . | . . . Repair Stations . | . . . Recycling Units 2 | . 2 . Reject 2 | . 2 . Scanalyzers . | . . . Garrison Access . | . . . Data Cores Recovered . | . . . Used . | . . . Hacking Detections 7 | . 7 . Full Trace Events . | . . . Feedback Events . | . . . Feedback Blocked . | . . . Robot Schematics Acquired . | . . . Robots Built . | . . . Authchips . | . . . Time . | . . . Total Robot Build Rating . | . . . Part Schematics Acquired . | . . . Parts Built . | . . . Authchips . | . . . Time . | . . . Total Part Build Rating . | . . . Parts Repaired 1 | . 1 . Time 26 | . 26 . Parts Recycled . | . . . Recycled Matter . | . . . Retrieved Matter . | . . . Retrieved Components . | . . . Parts Scanalyzed . | . . . Part Schematics Acquired . | . . . Parts Damaged . | . . . Bothacking | -11 -10 -10 ------------ Run | Yrd Mat Min Used RIF Installer . | . . . Robots Hacked . | . . . Non-combat . | . . . Combat . | . . . Robot Hacks Applied . | . . . Relay Couplers Released . | . . . Fabnet Peak Effective % . | . . . Robots Rewired . | . . . Allies Hacked . | . . . Hacks Repelled . | . . . Allies | -11 -10 -10 -------- Run | Yrd Mat Min Total Allies . | . . . Largest Group . | . . . Highest-Rated Group . | . . . Highest-Rated Ally . | . . . Total Orders . | . . . Ally Attacks . | . . . Total Damage . | . . . Kills . | . . . Allies Corrupted . | . . . Allies Melted . | . . . Intel | -11 -10 -10 ------- Run | Yrd Mat Min Active Infowar (turns) 635 | 103 532 . Structural 388 | . 388 . Seismic 247 | 103 144 . Robot Analysis Total 2 | . 2 . Derelict Logs Recovered 1 | . . 1 Drone Launches . | . . . Drone Recoveries . | . . . Exploration | -11 -10 -10 ------------- Run | Yrd Mat Min Turns Passed 2048 | 154 1104 790 Spaces Moved 1397 | 121 782 494 Core 8 | 8 . . Treads . | . . . Legs . | . . . Wheels 1389 | 113 782 494 Hover . | . . . Flight . | . . . Fastest Speed 50 | 50 90 135 Average Speed 110 | 88 97 137 Slowest Speed 215 | 150 135 215 Overloaded Moves . | . . . Propulsion Burnouts . | . . . Robots Hopped . | . . . Potential Cave-ins . | . . . Cave-ins Triggered . | . . . Exploration Rate (%) 58 | 5 86 84 Regions Visited 2 Branch Regions 1 Pre-discovered Areas . | . . . Known Exits Taken . | . . . Unknown Exits Taken 2 | 1 1 . Scrap Searched 3 | . . 3 Spaces Dug 1 | . 1 . Terrain Destroyed 10 | . 2 8 Melee . | . . . Projectile 2 | . 2 . AOE 8 | . . 8 Terrain Rammed . | . . . Walls Destroyed . | . . . Machines Disabled . | . . . Actions | -11 -10 -10 --------- Run | Yrd Mat Min Total 1696 | 144 1000 552 Wait 117 | . 105 12 Move 1395 | 120 781 494 Hop . | . . . Pick Up 36 | 6 19 11 Fast Attach 13 | 7 5 1 Attach 7 | . 4 3 Detach . | . . . Swap 5 | . 4 1 Drop 15 | . 12 3 Fire 108 | 11 70 27 Melee . | . . . Ram . | . . . Kick . | . . . Crush . | . . . Escape Stasis . | . . . Rewire . | . . . Trap . | . . . Miscellaneous . | . . . Route ------- -11/Scrapyard -10/Materials (discovered 3 exits: [*Mat x2] / [*Min]) -10/Mines (discovered 2 exits: [*Mat x2]) History --------- Turn | Location | Event 29 | -11/Scrapyard | Discovered new exit (range 16) 155 | -11/Scrapyard | Entered Materials 321 | -10/Materials | Build established: Mutant 415 | -10/Materials | Discovered new exit (range 15) 539 | -10/Materials | Core integrity fell below 50% 623 | -10/Materials | Discovered new exit (range 14) 710 | -10/Materials | Central database locked down 905 | -10/Materials | Discovered new exit (range 12) 1073 | -10/Materials | Repaired Wheel 1259 | -10/Materials | Entered Mines 1276 | -10/Mines | A weapon hastily lodged in a ceiling crevice suddenly fell to the ground 1418 | -10/Mines | Discovered new exit (range 7) 1493 | -10/Mines | Learned Materials interactive machine intel 1922 | -10/Mines | Discovered new exit (range 16) 1972 | -10/Mines | YI-UF0 nonchalantly dropped a Grenade Launcher on the ground 2044 | -10/Mines | Core integrity fell below 20% 2049 | -10/Mines | Destroyed by YI-UF0 with YI-UF0's Doublenader Last Messages --------------- 02005_ YI-UF0 mumbles something. 02031_ S-10 Pest destroyed. 02034_ YI-UF0: "Whaaaaaaaa!" 02035_ Wheel destroyed. 02035_ S-10 Pest destroyed. 02036_ The unstable cave ceiling collapses. 02037_ Ion Engine destroyed. 02039_ The unstable cave ceiling collapses. 02039_ YI-UF0 knocked back. 02039_ T-07 Excavator is excavating. 02039_ U-05 Engineer builds a Wall. 02043_ Adv. Beam Cannon destroyed. 02043_ Lgt. Cannon destroyed. 02043_ U-05 Engineer destroyed. 02044_ T-07 Excavator is excavating. 02045_ The unstable cave ceiling collapses. 02047_ Imp. Heat Sink destroyed. 02047_ Grenade Launcher destroyed. 02047_ Com. Wheel destroyed. 02049_ Ion Engine destroyed. Map ----- +----------------------------------------------------+ | ???????########## #???????????????????? | | ???????# #???????????????????? | | ???????# ##########???????????????????? | | #??##### #????????????????????????????? | | ##?# #????????????????????????????? | | ### #####????????????????????????????? | | #????????????????????????????????? | | ####????????????????????????????????? | | ##???????????????????????????????????? | | ##????????????????????????????????????? | | #?????????????????????????????????????? | | #?????????????????????????????????????? | | #???????????????????????????#####?????? | | #?????????????????????????### ##????? | | ???????????????????????#### ##???? | | ??????????????????????## ##??? | | ??????????????????????# #??? | | ?????????????????????## #??? | | ??#####??????????????# #??? | | ?## ##???####???#### # ####? | | ?# #??## ##### ] # #? | | ## #### ### # #? | | # =! < ## g * #? | | =%* ###### %% [ #? | | ###% ##??### *# #?? | | #?# ##??# @ #? #?? | | ##?# #??# #? ##?? | | ####??## #### = ??? | | ##??????#### | = # #? | | #??????????####### !# #? #? | | #????????????????# t # ###??? #? | | ????????????????## ?######??????? #? | | ????????????????###???????????????#? | | ???????????????????????????????????? | | ???????????????????????????????????? | | ####??????????????????????????????????? | | ??????????????????????????????????????? | | ??????????????????????????????????????? | | ??????????????????????????????????????? | | | | | | | | | | | | | | | | | | | | | | | +----------------------------------------------------+ Best States ------------- Heat Dissipation 39 Energy Generation 10 Energy Capacity 250 Matter Stores 300 Matter Capacity 300 Sight Range 16 Terrain Scan Density 10 Evasion (%) 42 Item Schematics ----------------- None Robot Schematics ------------------ None Fabricated ------------ Nothing Repaired ---------- Wheel | 42% | -10/Materials Alien Tech Used ----------------- None Achievements -------------- None Challenges ------------ None Game ------ Seed CompanionGaussBlasthammer Manual? 0 Play Time 00:20:24 Cumulative 300.5 hours Start 2025.08.12 @ 02:20:15 End 2025.08.12 @ 12:02:56 Sessions 5 Manual Loads 0 Difficulty Rogue Special Mode None Game No. 265 Rogue 265 Adventurer 0 Explorer 0 Win Type - Total 1 Types 1/0/0/0/0/0/0/0/0/0 Lore% 67 Gallery% 64 Achievement% 51 Wizard Run 0 Options --------- Layout 2 ASCII 1 Keyboard 1 Movement Numpad Keybinds 0 Fullscreen 2 Font 32/TamsynBold Map View 50x44 Zoom Use 0% Tactical HUD 1 Map Filters NONE Filters NONE Steam 1 RUN: ab6274e4-e2fb-4021-87bc-5d1a85555c00